{"text_format":"3","workbook":"xlsx","n_sheets":2,"sheets":["מעקב אחר פרוייקטים","הגדרה"],"not_rendered":{"defined_names":6},"read":"whole","date_system":"1900"}

{"sheet":"מעקב אחר פרוייקטים","index":0,"n_rows":13,"n_cols":15,"rows_kept":13}
[null,"מעקב אחר פרוייקטים"]
[null,null,"אחוז מעל/מתחת שיש לסמן בדגל: ",{"v":0.25,"d":"25%"}]
[]
[null,"פרוייקט","קטגוריה","מוקצה ל","מוערך\nהתחלה","מוערך \nסיום","עבודה מוערכת (בשעות)","משך מוערך (בימים)","בפועל \nהתחלה","בפועל\nסיום","סמל דגל - עבודה בפועל מעל/מתחת (בשעות)","עבודה בפועל (בשעות)","סמל דגל - משך בפועל מעל/מתחת (בימים)","משך בפועל (בימים)","הערות"]
[null,"פרוייקט 1","קטגוריה 1","עובד 1",{"$f":"TODAY()-65","v":"2016-08-17"},{"$f":"TODAY()-5","v":"2016-10-16"},210,{"$f":"IF(COUNTA('מעקב אחר פרוייקטים'!$E5,'מעקב אחר פרוייקטים'!$F5)<>2,\"\",DAYS360('מעקב אחר פרוייקטים'!$E5,'מעקב אחר פרוייקטים'!$F5,FALSE))","v":59},{"$f":"TODAY()-65","v":"2016-08-17"},{"$f":"TODAY()","v":"2016-10-21"},{"$f":"IFERROR(IF(מעקב_אחר_פרוייקטים[עבודה בפועל (בשעות)]=0,\"\",IF(ABS((מעקב_אחר_פרוייקטים[[#This Row],[עבודה בפועל (בשעות)]]-מעקב_אחר_פרוייקטים[[#This Row],[עבודה מוערכת (בשעות)]])/מעקב_אחר_פרוייקטים[[#This Row],[עבודה מוערכת (בשעות)]])>FlagPercent,1,0)),\"\")","v":1},300,{"$f":"IFERROR(IF(מעקב_אחר_פרוייקטים[משך בפועל (בימים)]=0,\"\",IF(ABS((מעקב_אחר_פרוייקטים[[#This Row],[משך בפועל (בימים)]]-מעקב_אחר_פרוייקטים[[#This Row],[משך מוערך (בימים)]])/מעקב_אחר_פרוייקטים[[#This Row],[משך מוערך (בימים)]])>FlagPercent,1,0)),\"\")","v":0},{"$f":"IF(COUNTA('מעקב אחר פרוייקטים'!$I5,'מעקב אחר פרוייקטים'!$J5)<>2,\"\",DAYS360('מעקב אחר פרוייקטים'!$I5,'מעקב אחר פרוייקטים'!$J5,FALSE))","v":64}]
[null,"פרוייקט 2","קטגוריה 2","עובד 4",{"$f":"TODAY()-41","v":"2016-09-10"},{"$f":"TODAY()-10","v":"2016-10-11"},400,{"$f":"IF(COUNTA('מעקב אחר פרוייקטים'!$E6,'מעקב אחר פרוייקטים'!$F6)<>2,\"\",DAYS360('מעקב אחר פרוייקטים'!$E6,'מעקב אחר פרוייקטים'!$F6,FALSE))","v":31},{"$f":"TODAY()-41","v":"2016-09-10"},{"$f":"TODAY()-7","v":"2016-10-14"},{"$f":"IFERROR(IF(מעקב_אחר_פרוייקטים[עבודה בפועל (בשעות)]=0,\"\",IF(ABS((מעקב_אחר_פרוייקטים[[#This Row],[עבודה בפועל (בשעות)]]-מעקב_אחר_פרוייקטים[[#This Row],[עבודה מוערכת (בשעות)]])/מעקב_אחר_פרוייקטים[[#This Row],[עבודה מוערכת (בשעות)]])>FlagPercent,1,0)),\"\")","v":0},390,{"$f":"IFERROR(IF(מעקב_אחר_פרוייקטים[משך בפועל (בימים)]=0,\"\",IF(ABS((מעקב_אחר_פרוייקטים[[#This Row],[משך בפועל (בימים)]]-מעקב_אחר_פרוייקטים[[#This Row],[משך מוערך (בימים)]])/מעקב_אחר_פרוייקטים[[#This Row],[משך מוערך (בימים)]])>FlagPercent,1,0)),\"\")","v":0},{"$f":"IF(COUNTA('מעקב אחר פרוייקטים'!$I6,'מעקב אחר פרוייקטים'!$J6)<>2,\"\",DAYS360('מעקב אחר פרוייקטים'!$I6,'מעקב אחר פרוייקטים'!$J6,FALSE))","v":34}]
[null,"פרוייקט 3","קטגוריה 1","עובד 2",{"$f":"TODAY()-100","v":"2016-07-13"},{"$f":"TODAY()-40","v":"2016-09-11"},500,{"$f":"IF(COUNTA('מעקב אחר פרוייקטים'!$E7,'מעקב אחר פרוייקטים'!$F7)<>2,\"\",DAYS360('מעקב אחר פרוייקטים'!$E7,'מעקב אחר פרוייקטים'!$F7,FALSE))","v":58},{"$f":"TODAY()-100","v":"2016-07-13"},{"$f":"TODAY()-27","v":"2016-09-24"},{"$f":"IFERROR(IF(מעקב_אחר_פרוייקטים[עבודה בפועל (בשעות)]=0,\"\",IF(ABS((מעקב_אחר_פרוייקטים[[#This Row],[עבודה בפועל (בשעות)]]-מעקב_אחר_פרוייקטים[[#This Row],[עבודה מוערכת (בשעות)]])/מעקב_אחר_פרוייקטים[[#This Row],[עבודה מוערכת (בשעות)]])>FlagPercent,1,0)),\"\")","v":0},500,{"$f":"IFERROR(IF(מעקב_אחר_פרוייקטים[משך בפועל (בימים)]=0,\"\",IF(ABS((מעקב_אחר_פרוייקטים[[#This Row],[משך בפועל (בימים)]]-מעקב_אחר_פרוייקטים[[#This Row],[משך מוערך (בימים)]])/מעקב_אחר_פרוייקטים[[#This Row],[משך מוערך (בימים)]])>FlagPercent,1,0)),\"\")","v":0},{"$f":"IF(COUNTA('מעקב אחר פרוייקטים'!$I7,'מעקב אחר פרוייקטים'!$J7)<>2,\"\",DAYS360('מעקב אחר פרוייקטים'!$I7,'מעקב אחר פרוייקטים'!$J7,FALSE))","v":71}]
[null,"פרוייקט 4","קטגוריה 2","עובד 3",{"$f":"TODAY()-90","v":"2016-07-23"},{"$f":"TODAY()-80","v":"2016-08-02"},250,{"$f":"IF(COUNTA('מעקב אחר פרוייקטים'!$E8,'מעקב אחר פרוייקטים'!$F8)<>2,\"\",DAYS360('מעקב אחר פרוייקטים'!$E8,'מעקב אחר פרוייקטים'!$F8,FALSE))","v":9},{"$f":"TODAY()-90","v":"2016-07-23"},{"$f":"TODAY()-71","v":"2016-08-11"},{"$f":"IFERROR(IF(מעקב_אחר_פרוייקטים[עבודה בפועל (בשעות)]=0,\"\",IF(ABS((מעקב_אחר_פרוייקטים[[#This Row],[עבודה בפועל (בשעות)]]-מעקב_אחר_פרוייקטים[[#This Row],[עבודה מוערכת (בשעות)]])/מעקב_אחר_פרוייקטים[[#This Row],[עבודה מוערכת (בשעות)]])>FlagPercent,1,0)),\"\")","v":0},276,{"$f":"IFERROR(IF(מעקב_אחר_פרוייקטים[משך בפועל (בימים)]=0,\"\",IF(ABS((מעקב_אחר_פרוייקטים[[#This Row],[משך בפועל (בימים)]]-מעקב_אחר_פרוייקטים[[#This Row],[משך מוערך (בימים)]])/מעקב_אחר_פרוייקטים[[#This Row],[משך מוערך (בימים)]])>FlagPercent,1,0)),\"\")","v":1},{"$f":"IF(COUNTA('מעקב אחר פרוייקטים'!$I8,'מעקב אחר פרוייקטים'!$J8)<>2,\"\",DAYS360('מעקב אחר פרוייקטים'!$I8,'מעקב אחר פרוייקטים'!$J8,FALSE))","v":18}]
[null,"פרוייקט 5","קטגוריה 3","עובד 2",{"$f":"TODAY()-90","v":"2016-07-23"},{"$f":"TODAY()-50","v":"2016-09-01"},300,{"$f":"IF(COUNTA('מעקב אחר פרוייקטים'!$E9,'מעקב אחר פרוייקטים'!$F9)<>2,\"\",DAYS360('מעקב אחר פרוייקטים'!$E9,'מעקב אחר פרוייקטים'!$F9,FALSE))","v":38},{"$f":"TODAY()-90","v":"2016-07-23"},{"$f":"TODAY()-44","v":"2016-09-07"},{"$f":"IFERROR(IF(מעקב_אחר_פרוייקטים[עבודה בפועל (בשעות)]=0,\"\",IF(ABS((מעקב_אחר_פרוייקטים[[#This Row],[עבודה בפועל (בשעות)]]-מעקב_אחר_פרוייקטים[[#This Row],[עבודה מוערכת (בשעות)]])/מעקב_אחר_פרוייקטים[[#This Row],[עבודה מוערכת (בשעות)]])>FlagPercent,1,0)),\"\")","v":0},310,{"$f":"IFERROR(IF(מעקב_אחר_פרוייקטים[משך בפועל (בימים)]=0,\"\",IF(ABS((מעקב_אחר_פרוייקטים[[#This Row],[משך בפועל (בימים)]]-מעקב_אחר_פרוייקטים[[#This Row],[משך מוערך (בימים)]])/מעקב_אחר_פרוייקטים[[#This Row],[משך מוערך (בימים)]])>FlagPercent,1,0)),\"\")","v":0},{"$f":"IF(COUNTA('מעקב אחר פרוייקטים'!$I9,'מעקב אחר פרוייקטים'!$J9)<>2,\"\",DAYS360('מעקב אחר פרוייקטים'!$I9,'מעקב אחר פרוייקטים'!$J9,FALSE))","v":44}]
[null,"פרוייקט 6","קטגוריה 4","עובד 4",{"$f":"TODAY()-60","v":"2016-08-22"},{"$f":"TODAY()-50","v":"2016-09-01"},500,{"$f":"IF(COUNTA('מעקב אחר פרוייקטים'!$E10,'מעקב אחר פרוייקטים'!$F10)<>2,\"\",DAYS360('מעקב אחר פרוייקטים'!$E10,'מעקב אחר פרוייקטים'!$F10,FALSE))","v":9},{"$f":"TODAY()-60","v":"2016-08-22"},{"$f":"TODAY()-45","v":"2016-09-06"},{"$f":"IFERROR(IF(מעקב_אחר_פרוייקטים[עבודה בפועל (בשעות)]=0,\"\",IF(ABS((מעקב_אחר_פרוייקטים[[#This Row],[עבודה בפועל (בשעות)]]-מעקב_אחר_פרוייקטים[[#This Row],[עבודה מוערכת (בשעות)]])/מעקב_אחר_פרוייקטים[[#This Row],[עבודה מוערכת (בשעות)]])>FlagPercent,1,0)),\"\")","v":0},510,{"$f":"IFERROR(IF(מעקב_אחר_פרוייקטים[משך בפועל (בימים)]=0,\"\",IF(ABS((מעקב_אחר_פרוייקטים[[#This Row],[משך בפועל (בימים)]]-מעקב_אחר_פרוייקטים[[#This Row],[משך מוערך (בימים)]])/מעקב_אחר_פרוייקטים[[#This Row],[משך מוערך (בימים)]])>FlagPercent,1,0)),\"\")","v":1},{"$f":"IF(COUNTA('מעקב אחר פרוייקטים'!$I10,'מעקב אחר פרוייקטים'!$J10)<>2,\"\",DAYS360('מעקב אחר פרוייקטים'!$I10,'מעקב אחר פרוייקטים'!$J10,FALSE))","v":14}]
[null,"פרוייקט 7","קטגוריה 5","עובד 1",{"$f":"TODAY()-44","v":"2016-09-07"},{"$f":"TODAY()-20","v":"2016-10-01"},750,{"$f":"IF(COUNTA('מעקב אחר פרוייקטים'!$E11,'מעקב אחר פרוייקטים'!$F11)<>2,\"\",DAYS360('מעקב אחר פרוייקטים'!$E11,'מעקב אחר פרוייקטים'!$F11,FALSE))","v":24},{"$f":"TODAY()-44","v":"2016-09-07"},{"$f":"TODAY()-15","v":"2016-10-06"},{"$f":"IFERROR(IF(מעקב_אחר_פרוייקטים[עבודה בפועל (בשעות)]=0,\"\",IF(ABS((מעקב_אחר_פרוייקטים[[#This Row],[עבודה בפועל (בשעות)]]-מעקב_אחר_פרוייקטים[[#This Row],[עבודה מוערכת (בשעות)]])/מעקב_אחר_פרוייקטים[[#This Row],[עבודה מוערכת (בשעות)]])>FlagPercent,1,0)),\"\")","v":0},790,{"$f":"IFERROR(IF(מעקב_אחר_פרוייקטים[משך בפועל (בימים)]=0,\"\",IF(ABS((מעקב_אחר_פרוייקטים[[#This Row],[משך בפועל (בימים)]]-מעקב_אחר_פרוייקטים[[#This Row],[משך מוערך (בימים)]])/מעקב_אחר_פרוייקטים[[#This Row],[משך מוערך (בימים)]])>FlagPercent,1,0)),\"\")","v":0},{"$f":"IF(COUNTA('מעקב אחר פרוייקטים'!$I11,'מעקב אחר פרוייקטים'!$J11)<>2,\"\",DAYS360('מעקב אחר פרוייקטים'!$I11,'מעקב אחר פרוייקטים'!$J11,FALSE))","v":29}]
[null,"פרוייקט 8","קטגוריה 2","עובד 1",{"$f":"TODAY()-39","v":"2016-09-12"},{"$f":"TODAY()","v":"2016-10-21"},450,{"$f":"IF(COUNTA('מעקב אחר פרוייקטים'!$E12,'מעקב אחר פרוייקטים'!$F12)<>2,\"\",DAYS360('מעקב אחר פרוייקטים'!$E12,'מעקב אחר פרוייקטים'!$F12,FALSE))","v":39},{"$f":"TODAY()-45","v":"2016-09-06"},{"$f":"TODAY()-5","v":"2016-10-16"},{"$f":"IFERROR(IF(מעקב_אחר_פרוייקטים[עבודה בפועל (בשעות)]=0,\"\",IF(ABS((מעקב_אחר_פרוייקטים[[#This Row],[עבודה בפועל (בשעות)]]-מעקב_אחר_פרוייקטים[[#This Row],[עבודה מוערכת (בשעות)]])/מעקב_אחר_פרוייקטים[[#This Row],[עבודה מוערכת (בשעות)]])>FlagPercent,1,0)),\"\")","v":0},430,{"$f":"IFERROR(IF(מעקב_אחר_פרוייקטים[משך בפועל (בימים)]=0,\"\",IF(ABS((מעקב_אחר_פרוייקטים[[#This Row],[משך בפועל (בימים)]]-מעקב_אחר_פרוייקטים[[#This Row],[משך מוערך (בימים)]])/מעקב_אחר_פרוייקטים[[#This Row],[משך מוערך (בימים)]])>FlagPercent,1,0)),\"\")","v":0},{"$f":"IF(COUNTA('מעקב אחר פרוייקטים'!$I12,'מעקב אחר פרוייקטים'!$J12)<>2,\"\",DAYS360('מעקב אחר פרוייקטים'!$I12,'מעקב אחר פרוייקטים'!$J12,FALSE))","v":40}]
[null,"פרוייקט 9","קטגוריה 4","עובד 1","2016-02-05","2016-06-09",250,{"$f":"IF(COUNTA('מעקב אחר פרוייקטים'!$E13,'מעקב אחר פרוייקטים'!$F13)<>2,\"\",DAYS360('מעקב אחר פרוייקטים'!$E13,'מעקב אחר פרוייקטים'!$F13,FALSE))","v":124},"2016-03-05","2016-05-05",{"$f":"IFERROR(IF(מעקב_אחר_פרוייקטים[עבודה בפועל (בשעות)]=0,\"\",IF(ABS((מעקב_אחר_פרוייקטים[[#This Row],[עבודה בפועל (בשעות)]]-מעקב_אחר_פרוייקטים[[#This Row],[עבודה מוערכת (בשעות)]])/מעקב_אחר_פרוייקטים[[#This Row],[עבודה מוערכת (בשעות)]])>FlagPercent,1,0)),\"\")","v":0},200,{"$f":"IFERROR(IF(מעקב_אחר_פרוייקטים[משך בפועל (בימים)]=0,\"\",IF(ABS((מעקב_אחר_פרוייקטים[[#This Row],[משך בפועל (בימים)]]-מעקב_אחר_פרוייקטים[[#This Row],[משך מוערך (בימים)]])/מעקב_אחר_פרוייקטים[[#This Row],[משך מוערך (בימים)]])>FlagPercent,1,0)),\"\")","v":1},{"$f":"IF(COUNTA('מעקב אחר פרוייקטים'!$I13,'מעקב אחר פרוייקטים'!$J13)<>2,\"\",DAYS360('מעקב אחר פרוייקטים'!$I13,'מעקב אחר פרוייקטים'!$J13,FALSE))","v":60}]

{"sheet":"הגדרה","index":1,"n_rows":10,"n_cols":3,"rows_kept":10}
[null,"הגדרה"]
[]
[]
[null,"שם קטגוריה","שם עובד"]
[null,"קטגוריה 1","עובד 1"]
[null,"קטגוריה 2","עובד 2"]
[null,"קטגוריה 3","עובד 3"]
[null,"קטגוריה 4","עובד 4"]
[null,"קטגוריה 5","עובד 5"]
[null,"קטגוריה 6","עובד 6"]